fUST/lending_fUST_20260121
["ID","MTS","AMOUNT","RATE_DAILY","PERIOD"]
[402836327,1768924803362,500.0,0.00027397,120]
[402836328,1768924803487,648.5,0.00027397,120]
[402836425,1768924806893,500.0,0.00027397,120]
[402836428,1768924808238,500.0,0.00027397,120]
[402836429,1768924808720,328.64425098,0.00027397,120]
[402836430,1768924815128,500.0,0.00027397,120]
[402836431,1768924816540,500.0,0.00027397,120]
[402836432,1768924816921,500.0,0.00027397,120]
[402836433,1768924817738,500.0,0.00027397,120]
[402836434,1768924817979,516.99,0.00027397,120]
[402836435,1768924819817,500.0,0.00027397,120]
[402836436,1768924820049,500.0,0.00027397,120]
[402836440,1768924826539,500.0,0.00027397,120]
[402836441,1768924829426,500.0,0.00027397,120]
[402836442,1768924829757,503.24834377,0.00027397,120]
[402836443,1768924830030,500.0,0.00027397,120]
[402836444,1768924830250,525.24,0.00027397,120]
[402836445,1768924831858,500.0,0.00027397,120]
[402836446,1768924832379,500.0,0.00027397,120]
[402836447,1768924834873,500.0,0.00027397,120]
[402836448,1768924843960,500.0,0.00027397,120]
[402836449,1768924844235,344.47,0.00027397,120]
[402836450,1768924850276,500.0,0.00027397,120]
[402836451,1768924857006,500.0,0.00027397,120]
[402836452,1768924857264,194.52,0.00027397,120]
[402836453,1768924861379,500.0,0.00027397,120]
[402836454,1768924865716,500.0,0.00027397,120]
[402836455,1768924867173,500.0,0.00027397,120]
[402836456,1768924867417,512.74,0.00027397,120]
[402836457,1768924867531,500.0,0.00027397,120]
[402836458,1768924868157,500.0,0.00027397,120]
[402836459,1768924870152,500.0,0.00027397,120]
[402836460,1768924870873,547.29,0.00027397,120]
[402836461,1768924872595,538.78190363,0.00027397,120]
[402836462,1768924874370,500.0,0.00027397,120]
[402836463,1768924874720,500.0,0.00027397,120]
[402836464,1768924875091,500.0,0.00027397,120]
[402836465,1768924875257,414.06054429,0.00027397,120]
[402836466,1768924877388,500.0,0.00027397,120]
[402836467,1768924877512,500.0,0.00027397,120]
[402836468,1768924877752,500.0,0.00027397,120]
[402836469,1768924879581,500.0,0.00027397,120]
[402836470,1768924879837,500.0,0.00027397,120]
[402836471,1768924880176,500.0,0.00027397,120]
[402836472,1768924882760,500.0,0.00027397,120]
[402836473,1768924883068,500.0,0.00027397,120]
[402836474,1768924883318,198.36,0.00027397,120]
[402836475,1768924885321,500.0,0.00027397,120]
[402836476,1768924887398,500.0,0.00027397,120]
[402836477,1768924887648,354.05,0.00027397,120]
[402836478,1768924887835,500.0,0.00027397,120]
[402836479,1768924888198,649.14,0.00027397,120]
[402836480,1768924890990,500.0,0.00027397,120]
[402836481,1768924891247,500.0,0.00027397,120]
[402836482,1768924891520,232.1,0.00027397,120]
[402836483,1768924891823,500.0,0.00027397,120]
[402836484,1768924892070,174.01,0.00027397,120]
[402836485,1768924892540,500.0,0.00027397,120]
[402836486,1768924892777,635.8,0.00027397,120]
[402836487,1768924899525,500.0,0.00027397,120]
[402836488,1768924899640,500.0,0.00027397,120]
[402836489,1768924899850,500.0,0.00027397,120]
[402836490,1768924900064,506.28,0.00027397,120]
[402836491,1768924900585,596.56227807,0.00027397,120]
[402836492,1768924905060,500.0,0.00027397,120]
[402836493,1768924905319,500.0,0.00027397,120]
[402836494,1768924905425,547.32197869,0.00027397,120]
[402836495,1768924907146,500.0,0.00027397,120]
[402836496,1768924907378,500.0,0.00027397,120]
[402836497,1768924908218,500.0,0.00027397,120]
[402836498,1768924908467,500.0,0.00027397,120]
[402836499,1768924909700,500.0,0.00027397,120]
[402836500,1768924910532,500.0,0.00027397,120]
[402836501,1768924910792,500.0,0.00027397,120]
[402836502,1768924911598,500.0,0.00027397,120]
[402836503,1768924911726,500.0,0.00027397,120]
[402836504,1768924911844,500.0,0.00027397,120]
[402836505,1768924913675,500.0,0.00027397,120]
[402836506,1768924913920,500.0,0.00027397,120]
[402836507,1768924914169,414.48,0.00027397,120]
[402836508,1768924920102,500.0,0.00027397,120]
[402836509,1768924920345,500.0,0.00027397,120]
[402836510,1768924925417,500.0,0.00027397,120]
[402836511,1768924925528,500.0,0.00027397,120]
[402836512,1768924925675,500.0,0.00027397,120]
[402836513,1768924925791,500.0,0.00027397,120]
[402836514,1768924925888,500.0,0.00027397,120]
[402836515,1768924925992,371.34,0.00027397,120]
[402836516,1768924926111,500.0,0.00027397,120]
[402836517,1768924929211,500.0,0.00027397,120]
[402836518,1768924929549,500.0,0.00027397,120]
[402836519,1768924935010,500.0,0.00027397,120]
[402836520,1768924935287,629.63699544,0.00027397,120]
[402836521,1768924941469,500.0,0.00027397,120]
[402836522,1768924941713,500.0,0.00027397,120]
[402836523,1768924944723,500.0,0.00027397,120]
[402836524,1768924944964,500.0,0.00027397,120]
[402836525,1768924946079,500.0,0.00027397,120]
[402836526,1768924946309,602.92,0.00027397,120]
[402836527,1768924948180,500.0,0.00027397,120]
[402836528,1768924948419,500.0,0.00027397,120]
[402836530,1768924950615,500.0,0.00027397,120]
[402836531,1768924950854,500.0,0.00027397,120]
[402836532,1768924953145,500.0,0.00027397,120]
[402836533,1768924953389,500.0,0.00027397,120]
[402836534,1768924953617,500.0,0.00027397,120]
[402836535,1768924953882,500.0,0.00027397,120]
[402836536,1768924954150,598.32,0.00027397,120]
[402836537,1768924954275,500.0,0.00027397,120]
[402836538,1768924954518,500.0,0.00027397,120]
[402836539,1768924954619,500.0,0.00027397,120]
[402836540,1768924954881,200.4028635,0.00027397,120]
[402836541,1768924956416,500.0,0.00027397,120]
[402836542,1768924956885,564.03397583,0.00027397,120]
[402836543,1768924957146,500.0,0.00027397,120]
[402836544,1768924957297,500.0,0.00027397,120]
[402836545,1768924958809,500.0,0.00027397,120]
[402836546,1768924959060,544.47,0.00027397,120]
[402836547,1768924960826,500.0,0.00027397,120]
[402836548,1768924962261,500.0,0.00027397,120]
[402836549,1768924962488,500.0,0.00027397,120]
[402836550,1768924964191,500.0,0.00027397,120]
[402836551,1768924964470,546.03,0.00027397,120]
[402836552,1768924964657,500.0,0.00027397,120]
[402836553,1768924964888,500.0,0.00027397,120]
[402836554,1768924967885,500.0,0.00027397,120]
[402836555,1768924968675,500.0,0.00027397,120]
[402836556,1768924968898,500.0,0.00027397,120]
[402836557,1768924969242,500.0,0.00027397,120]
[402836558,1768924969497,500.0,0.00027397,120]
[402836559,1768924974436,500.0,0.00027397,120]
[402836560,1768924975542,500.0,0.00027397,120]
[402836561,1768924975804,500.0,0.00027397,120]
[402836562,1768924978014,500.0,0.00027397,120]
[402836563,1768924978118,500.0,0.00027397,120]
[402836564,1768924978400,235.58,0.00027397,120]
[402836565,1768924979332,500.0,0.00027397,120]
[402836566,1768924979570,500.0,0.00027397,120]
[402836567,1768924980350,500.0,0.00027397,120]
[402836568,1768924980605,500.0,0.00027397,120]
[402836569,1768924982790,500.0,0.00027397,120]
[402836570,1768924983028,500.0,0.00027397,120]
[402836571,1768924985263,500.0,0.00027397,120]
[402836572,1768924986802,500.0,0.00027397,120]
[402836573,1768924987233,500.0,0.00027397,120]
[402836574,1768924987803,500.0,0.00027397,120]
[402836575,1768924988259,500.0,0.00027397,120]
[402836576,1768924988387,500.0,0.00027397,120]
[402836577,1768924988488,500.0,0.00027397,120]
[402836578,1768924990131,500.0,0.00027397,120]
[402836579,1768924990414,500.0,0.00027397,120]
[402836580,1768924990661,187.61,0.00027397,120]
[402836581,1768924991885,500.0,0.00027397,120]
[402836582,1768924992123,525.58,0.00027397,120]
[402836583,1768924994574,500.0,0.00027397,120]
[402836585,1768924996697,500.0,0.00027397,120]
[402836586,1768924996935,500.0,0.00027397,120]
[402836587,1768924998017,500.0,0.00027397,120]
[402836588,1768925002063,500.0,0.00027397,120]
[402836590,1768925003850,500.0,0.00027397,120]
[402836591,1768925004447,285.5,0.00027397,120]
[402836592,1768925006008,516.47,0.00027397,120]
[402836593,1768925007329,500.0,0.00027397,120]
[402836594,1768925007727,500.0,0.00027397,120]
[402836596,1768925008529,638.81,0.00027397,120]
[402836597,1768925009701,500.0,0.00027397,120]
[402836598,1768925011267,500.0,0.00027397,120]
[402836599,1768925011592,500.0,0.00027397,120]
[402836600,1768925011828,407.61,0.00027397,120]
[402836601,1768925013116,500.0,0.00027397,120]
[402836602,1768925019296,500.0,0.00027397,120]
[402836603,1768925020274,500.0,0.00027397,120]
[402836604,1768925022165,500.0,0.00027397,120]
[402836605,1768925025516,500.0,0.00027397,120]
[402836608,1768925026014,629.3,0.00027397,120]
[402836609,1768925027286,500.0,0.00027397,120]
[402836610,1768925027866,500.0,0.00027397,120]
[402836611,1768925028109,500.0,0.00027397,120]
[402836612,1768925028344,500.0,0.00027397,120]
[402836613,1768925028587,470.66,0.00027397,120]
[402836614,1768925029448,500.0,0.00027397,120]
[402836615,1768925030457,500.0,0.00027397,120]
[402836616,1768925031293,500.0,0.00027397,120]
[402836617,1768925036048,578.72,0.00027397,120]
[402836618,1768925039350,500.0,0.00027397,120]
[402836619,1768925043293,500.0,0.00027397,120]
[402836620,1768925045077,500.0,0.00027397,120]
[402836621,1768925045315,387.59,0.00027397,120]
[402836622,1768925047351,500.0,0.00027397,120]
[402836623,1768925049231,500.0,0.00027397,120]
[402836624,1768925051066,500.0,0.00027397,120]
[402836625,1768925056109,500.0,0.00027397,120]
[402836626,1768925056351,231.79,0.00027397,120]
[402836627,1768925059315,500.0,0.00027397,120]
[402836628,1768925059690,529.21482368,0.00027397,120]
[402836629,1768925066094,500.0,0.00027397,120]
[402836630,1768925071093,500.0,0.00027397,120]
[402836631,1768925074284,596.89198935,0.00027397,120]
[402836632,1768925074724,500.0,0.00027397,120]
[402836633,1768925076573,500.0,0.00027397,120]
[402836634,1768925082273,500.0,0.00027397,120]
[402836635,1768925086775,500.0,0.00027397,120]
[402836636,1768925087142,500.0,0.00027397,120]
[402836637,1768925090711,500.0,0.00027397,120]
[402836638,1768925090877,500.0,0.00027397,120]
[402836639,1768925091118,364.48,0.00027397,120]
[402836640,1768925093607,500.0,0.00027397,120]
[402836641,1768925100777,5416.91884005,0.00027,120]
[402836642,1768925101124,500.0,0.00027397,120]
[402836643,1768925102485,500.0,0.00027397,120]
[402836644,1768925104498,500.0,0.00027397,120]
[402836645,1768925104878,500.0,0.00027397,120]
[402836646,1768925106907,500.0,0.00027397,120]
[402836647,1768925109911,500.0,0.00027397,120]
[402836648,1768925110166,584.64,0.00027397,120]
[402836649,1768925111120,500.0,0.00027397,120]
[402836650,1768925111372,369.07,0.00027397,120]
[402836651,1768925112045,500.0,0.00027397,120]
[402836652,1768925117666,500.0,0.00027397,120]
[402836653,1768925120117,500.0,0.00027397,120]
[402836654,1768925125862,500.0,0.00027397,120]
[402836655,1768925133578,200.0,0.0002703,120]
[402836656,1768925134514,500.0,0.00027397,120]
[402836657,1768925134858,500.0,0.00027397,120]
[402836658,1768925136835,500.0,0.00027397,120]
[402836659,1768925139762,500.0,0.00027397,120]
[402836660,1768925141058,500.0,0.00027397,120]
[402836661,1768925141624,500.0,0.00027397,120]
[402836662,1768925148953,500.0,0.00027397,120]
[402836663,1768925150726,500.0,0.00027397,120]
[402836664,1768925150867,500.0,0.00027397,120]
[402836665,1768925153525,500.0,0.00027397,120]
[402836666,1768925157048,500.0,0.00027397,120]
[402836667,1768925163812,500.0,0.00027397,120]
[402836668,1768925166427,500.0,0.00027397,120]
[402836669,1768925168199,500.0,0.00027397,120]
[402836670,1768925172700,500.0,0.00027397,120]
[402836671,1768925172928,544.6,0.00027397,120]
[402836672,1768925174493,551.67,0.00027397,120]
[402836673,1768925176324,500.0,0.00027397,120]
[402836674,1768925178336,500.0,0.00027397,120]
[402836675,1768925178596,174.48,0.00027397,120]
[402836676,1768925180426,287.19905791,0.00027397,120]
[402836677,1768925184374,500.0,0.00027397,120]
[402836678,1768925184479,500.0,0.00027397,120]
[402836679,1768925185786,337.68,0.00027397,120]
[402836680,1768925189845,500.0,0.00027397,120]
[402836681,1768925192580,500.0,0.00027397,120]
[402836682,1768925194106,500.0,0.00027397,120]
[402836683,1768925195172,500.0,0.00027397,120]
[402836684,1768925202827,500.0,0.00027397,120]
[402836685,1768925203089,500.0,0.00027397,120]
[402836686,1768925206394,500.0,0.00027397,120]
[402836687,1768925206651,500.0,0.00027397,120]
[402836688,1768925208660,500.0,0.00027397,120]
[402836689,1768925209058,500.0,0.00027397,120]
[402836690,1768925209969,500.0,0.00027397,120]
[402836691,1768925214931,500.0,0.00027397,120]
[402836692,1768925215177,500.0,0.00027397,120]
[402836693,1768925229687,500.0,0.00027397,120]
[402836694,1768925235478,649.38,0.00027397,120]
[402836695,1768925239082,500.0,0.00027397,120]
[402836696,1768925239682,361.11,0.00027397,120]
[402836697,1768925250736,500.0,0.00027397,120]
[402836698,1768925250981,500.0,0.00027397,120]
[402836699,1768925251736,500.0,0.00027397,120]
[402836700,1768925254715,500.0,0.00027397,120]
[402836701,1768925254961,500.0,0.00027397,120]
[402836702,1768925256876,500.0,0.00027397,120]
[402836703,1768925257229,328.37,0.00027397,120]
[402836704,1768925258735,500.0,0.00027397,120]
[402836705,1768925260715,500.0,0.00027397,120]
[402836706,1768925260823,500.0,0.00027397,120]
[402836707,1768925260938,500.0,0.00027397,120]
[402836708,1768925262285,500.0,0.00027397,120]
[402836709,1768925262615,500.0,0.00027397,120]
[402836710,1768925264072,500.0,0.00027397,120]
[402836711,1768925264307,284.74,0.00027397,120]
[402836712,1768925266048,500.0,0.00027397,120]
[402836713,1768925266154,500.0,0.00027397,120]
[402836714,1768925268051,500.0,0.00027397,120]
[402836715,1768925268303,301.02,0.00027397,120]
[402836716,1768925268629,500.0,0.00027397,120]
[402836717,1768925268866,500.0,0.00027397,120]
[402836718,1768925271271,500.0,0.00027397,120]
[402836719,1768925276423,500.0,0.00027397,120]
[402836720,1768925276667,500.0,0.00027397,120]
[402836721,1768925276905,500.0,0.00027397,120]
[402836722,1768925280086,500.0,0.00027397,120]
[402836723,1768925281743,500.0,0.00027397,120]
[402836724,1768925285274,500.0,0.00027397,120]
[402836725,1768925285496,210.33,0.00027397,120]
[402836726,1768925287336,214.48714005,0.00027397,120]
[402836727,1768925290527,500.0,0.00027397,120]
[402836728,1768925296331,629.75777174,0.00027397,120]
[402836729,1768925297399,533.11445004,0.00027397,120]
[402836731,1768925298209,556.93843661,0.00027397,120]
[402836732,1768925300658,500.0,0.00027397,120]
[402836733,1768925301156,500.0,0.00027397,120]
[402836734,1768925301266,407.26,0.00027397,120]
[402836735,1768925304463,500.0,0.00027397,120]
[402836736,1768925304674,500.0,0.00027397,120]
[402836737,1768925310877,500.0,0.00027397,120]
[402836738,1768925311148,500.0,0.00027397,120]
[402836739,1768925313289,500.0,0.00027397,120]
[402836740,1768925313537,500.0,0.00027397,120]
[402836741,1768925314681,500.0,0.00027397,120]
[402836744,1768925317138,500.0,0.00027397,120]
[402836745,1768925319765,500.0,0.00027397,120]
[402836746,1768925320025,500.0,0.00027397,120]
[402836747,1768925320355,500.0,0.00027397,120]
[402836748,1768925321763,500.0,0.00027397,120]
[402836749,1768925326390,500.0,0.00027397,120]
[402836750,1768925328375,500.0,0.00027397,120]
[402836751,1768925328725,500.0,0.00027397,120]
[402836752,1768925339406,500.0,0.00027397,120]
[402836753,1768925339647,500.0,0.00027397,120]
[402836754,1768925350456,500.0,0.00027397,120]
[402836755,1768925363498,1000.0,0.00027,120]
[402836757,1768925396520,30094.5856155,0.00027397,120]
[402836758,1768925431181,200.0,0.00026139,120]
[402836816,1768925431983,-332.93679327,0.00010071,10]
[402836817,1768925431994,-4667.06320673,0.00010071,10]
[402836819,1768925432004,-563.0,0.00010173,2]
[402836821,1768925432013,-171.55163217,0.00010173,2]
[402836823,1768925432022,-300.0,0.00011066,2]
[402836825,1768925432032,-300.0,0.00011066,2]
[402836827,1768925432041,-1200.0,0.00011066,2]
[402836829,1768925432050,-300.0,0.00011066,2]
[402836830,1768925432060,-300.0,0.00011067,2]
[402836832,1768925432069,-4039.3973762,0.00011068,2]
[402836834,1768925432079,-208.733,0.0001176,2]
[402836836,1768925432090,-21860.058159,0.00011999,2]
[402836838,1768925432100,-615.77878969,0.00011999,2]
[402836840,1768925432109,-68790.5113744,0.00012,2]
[402836882,1768925437886,-435168.26902385,0.00012,2]
[402836883,1768925437896,-202.43092596,0.00012173,2]
[402836884,1768925437906,-213.2257564,0.00012588,2]
[402836885,1768925437915,-2184.77268176,0.000129,2]
[402836886,1768925437925,-465.81779273,0.00013273,2]
[402836887,1768925437934,-500.0,0.00013273,2]
[402836888,1768925437943,-170.16316784,0.00013273,2]
[402836889,1768925437953,-501.09814596,0.00013273,2]
[402836890,1768925437962,-4999.999999,0.0001354,2]
[402836891,1768925437972,-204.99298706,0.00013699,2]
[402836892,1768925437981,-500.0,0.00013989,2]
[402836893,1768925437991,-500.0,0.00013989,2]
[402836894,1768925438000,-100000.0,0.0001399,2]
[402836895,1768925438010,-233.31021975,0.00014173,2]
[402836897,1768925438019,-1041.66666667,0.0001424,2]
[402836898,1768925438027,-2184.77268169,0.00014461,2]
[402836899,1768925438037,-5000.0,0.0001451,2]
[402836900,1768925438046,-264.18951354,0.00016173,2]
[402836901,1768925438055,-2184.77268169,0.00017024,2]
[402836902,1768925438066,-325.0,0.00017397,3]
[402836903,1768925438076,-417.0,0.00018093,2]
[402836904,1768925438085,-178.0,0.00018093,2]
[402836905,1768925438095,-295.06880733,0.00018173,2]
[402836906,1768925438105,-158.25,0.00018216,2]
[402836908,1768925438114,-303.10001603,0.000189,2]
[402836910,1768925438124,-303.10001603,0.000189,2]
[402836912,1768925438133,-197.81,0.00018975,2]
[402836914,1768925438142,-303.10001603,0.00019089,2]
[402836916,1768925438152,-303.10001603,0.00019089,2]
[402836918,1768925438162,-542.23,0.00019178,2]
[402836920,1768925438172,-846.0132,0.00019178,2]
[402836922,1768925438181,-846.0132,0.00019178,2]
[402836923,1768925438191,-846.0132,0.00019178,2]
[402836925,1768925438200,-846.0132,0.00019178,2]
[402836927,1768925438209,-846.0132,0.00019178,2]
[402836928,1768925438219,-846.0132,0.00019178,2]
[402836930,1768925438229,-507.61,0.00019178,2]
[402836932,1768925438238,-507.6079,0.00019178,2]
[402836934,1768925438247,-507.6079,0.00019178,2]
[402836936,1768925438255,-507.6079,0.00019178,2]
[402836938,1768925438265,-507.6079,0.00019178,2]
[402836940,1768925438275,-167.89,0.000192,2]
[402836942,1768925438284,-349.28,0.000192,2]
[402836944,1768925438293,-39601.47,0.000192,2]
[402836946,1768925438303,-373.2,0.000192,2]
[402836948,1768925438312,-7026.69,0.000192,2]
[402836949,1768925438323,-500.0,0.000192,2]
[402836951,1768925438332,-303.10001603,0.00019278,2]
[402836953,1768925438342,-303.10001603,0.00019278,2]
[402836955,1768925438351,-151.0,0.00019315,2]
[402836957,1768925438360,-303.10001603,0.00019467,2]
[402836959,1768925438369,-303.10001603,0.00019467,2]
[402836961,1768925438379,-2184.77268169,0.00019586,2]
[402836963,1768925438388,-369.2068,0.00019589,3]
[402836965,1768925438397,-846.0132,0.00019589,3]
[402836967,1768925438407,-169.1968,0.00019589,3]
[402836970,1768925438417,-846.0132,0.00019589,3]
[402836971,1768925438426,-846.0132,0.00019589,3]
[402836973,1768925438436,-846.0132,0.00019589,3]
[402836976,1768925438446,-507.6079,0.00019589,3]
[402836977,1768925438455,-507.6079,0.00019589,3]
[402836979,1768925438465,-303.10001603,0.00019656,2]
[402836982,1768925438474,-303.10001603,0.00019656,2]
[402836983,1768925438483,-237.38,0.00019734,2]
[402836985,1768925438492,-159.62665952,0.00019749,2]
[402836987,1768925438501,-156.8854744,0.00019749,2]
[402836989,1768925438511,-157.24845598,0.00019749,2]
[402836991,1768925438521,-454.65002405,0.00019845,4]
[402836994,1768925438531,-454.65002405,0.00019845,4]
[402836995,1768925438541,-882.45,0.0002,2]
[402836997,1768925438551,-7880.0,0.0002,2]
[402836999,1768925438562,-846.0132,0.0002,4]
[402837002,1768925438571,-300.0,0.0002,2]
[402837003,1768925438581,-507.6036,0.0002,4]
[402837005,1768925438590,-169.2136,0.0002,4]
[402837007,1768925438600,-846.0132,0.0002,4]
[402837009,1768925438610,-507.6042,0.0002,4]
[402837011,1768925438619,-507.6079,0.0002,4]
[402837013,1768925438629,-250.0,0.0002,10]
[402837015,1768925438639,-454.65002405,0.00020034,4]
[402837017,1768925438648,-454.65002405,0.00020034,4]
[402837019,1768925438658,-250.0,0.000201,10]
[402837021,1768925438667,-186.0,0.00020137,3]
[402837023,1768925438677,-325.94810112,0.00020173,2]
[402837025,1768925438686,-250.0,0.000202,10]
[402837027,1768925438696,-454.65002405,0.00020223,4]
[402837030,1768925438705,-454.65002405,0.00020223,4]
[402837031,1768925438715,-151.0,0.00020274,2]
[402837033,1768925438724,-250.0,0.000203,10]
[402837035,1768925438734,-250.0,0.000204,10]
[402837037,1768925438743,-454.65002405,0.00020412,4]
[402837039,1768925438753,-454.65002405,0.00020412,4]
[402837041,1768925438763,-600.0,0.00020442,2]
[402837043,1768925438772,-600.0,0.00020442,2]
[402837045,1768925438782,-1500.0,0.00020451,2]
[402837047,1768925438798,-1500.0,0.00020484,2]
[402837050,1768925438809,-276.94,0.00020493,2]
[402837051,1768925438818,-600.0,0.00020496,2]
[402837053,1768925438828,-250.0,0.000205,10]
[402837055,1768925438838,-500.0,0.00020529,2]
[402837057,1768925438848,-7530.24,0.00020547,2]
[402837059,1768925438857,-600.0,0.00020566,2]
[402837061,1768925438867,-600.0,0.00020573,2]
[402837063,1768925438877,-1500.0,0.00020596,2]
[402837065,1768925438886,-167.89,0.000206,2]
[402837067,1768925438895,-349.28,0.000206,2]
[402837069,1768925438905,-39601.47,0.000206,2]
[402837071,1768925438914,-373.2,0.000206,2]
[402837073,1768925438924,-7026.69,0.000206,2]
[402837075,1768925438932,-250.0,0.000206,10]
[402837077,1768925438942,-454.65002405,0.00020601,4]
[402837079,1768925438951,-454.65002405,0.00020601,4]
[402837081,1768925438961,-1500.0,0.00020656,2]
[402837083,1768925438970,-500.0,0.00020659,2]
[402837085,1768925438979,-600.0,0.00020677,2]
[402837087,1768925438989,-500.0,0.00020687,2]
[402837089,1768925438999,-250.0,0.000207,10]
[402837091,1768925439008,-600.0,0.00020755,2]
[402837093,1768925439018,-600.0,0.00020773,2]
[402837095,1768925439027,-600.0,0.00020778,2]
[402837097,1768925439037,-281.88,0.0002079,3]
[402837099,1768925439046,-902.3596719,0.00020794,2]
[402837101,1768925439057,-250.0,0.000208,10]
[402837103,1768925439067,-600.0,0.00020834,2]
[402837105,1768925439076,-1500.0,0.00020866,2]
[402837106,1768925439086,-600.0,0.00020896,2]
[402837108,1768925439095,-250.0,0.000209,10]
[402837109,1768925439105,-600.0,0.00020905,2]
[402837111,1768925439115,-600.0,0.00020913,2]
[402837113,1768925439123,-600.0,0.00020919,2]
[402837115,1768925439133,-3000.0,0.00021,2]
[402837117,1768925439143,-250.0,0.00021,10]
[402837119,1768925439152,-3000.0,0.0002101,2]
[402837121,1768925439162,-1500.0,0.00021013,2]
[402837123,1768925439171,-3000.0,0.0002102,2]
[402837125,1768925439185,-3000.0,0.0002103,2]
[402837127,1768925439195,-600.0,0.0002103,2]
[402837129,1768925439205,-3000.0,0.0002104,2]
[402837132,1768925439215,-3000.0,0.0002105,2]
[402837134,1768925439224,-507.929209,0.0002105,7]
[402837136,1768925439234,-600.0,0.00021058,2]
[402837138,1768925439245,-3000.0,0.0002106,2]
[402837140,1768925439256,-2031.716838,0.0002106,7]
[402837142,1768925439265,-3000.0,0.0002107,2]
[402837144,1768925439275,-203.171685,0.0002107,7]
[402837146,1768925439285,-3000.0,0.0002108,2]
[402837148,1768925439295,-3000.0,0.0002109,2]
[402837150,1768925439304,-304.757526,0.00021093,7]
[402837151,1768925439314,-417.0,0.00021093,2]
[402837153,1768925439323,-178.0,0.00021093,2]
[402837155,1768925439333,-3000.0,0.000211,2]
[402837157,1768925439343,-250.0,0.000211,10]
[402837159,1768925439353,-3000.0,0.0002111,2]
[402837161,1768925439363,-3000.0,0.0002112,2]
[402837163,1768925439373,-600.0,0.00021121,2]
[402837165,1768925439382,-3000.0,0.0002113,2]
[402837167,1768925439392,-1500.0,0.00021138,2]
[402837169,1768925439402,-3000.0,0.0002114,2]
[402837171,1768925439412,-3000.0,0.0002115,2]
[402837173,1768925439423,-600.0,0.0002115,2]
[402837175,1768925439433,-3000.0,0.0002116,2]
[402837177,1768925439443,-3000.0,0.0002117,2]
[402837179,1768925439453,-1500.0,0.00021171,2]
[402837181,1768925439463,-3000.0,0.0002118,2]
[402837183,1768925439473,-3000.0,0.0002119,2]